bitfinex/quotes_SOLUSD_20250728
["timestamp","ask_amount","ask_price","bid_price","bid_amount"]
[1753664672324,37.66,189.22,189.21,0.66000001]
[1753664672626,63.66,189.22,189.21,0.66000001]
[1753664672831,26.0,189.22,189.21,0.66000001]
[1753664673346,10.13464496,189.22,189.21,1e-08]
[1753664673516,9.81464496,189.22,189.21,1e-08]
[1753664674214,26.91932893,189.22,189.21,1e-08]
[1753664674739,33.58442893,189.22,189.21,1e-08]
[1753664675233,33.58442893,189.22,189.17,1e-08]
[1753664675421,57.13023772,189.18,189.17,1e-08]
[1753664675732,85.730655,189.18,189.17,1e-08]
[1753664675924,95.11023772,189.18,189.17,1e-08]
[1753664676429,85.730655,189.18,189.17,1e-08]
[1753664676639,90.26044636,189.18,189.17,1e-08]
[1753664676805,73.47576239,189.18,189.17,1e-08]
[1753664678848,94.88023772,189.18,189.17,1e-08]
[1753664680857,93.21384792,189.18,189.17,1e-08]
[1753664681241,16.78468397,189.12,189.07,0.06]
[1753664681441,12.68140021,189.1,189.07,0.06]
[1753664681636,37.66,189.09,189.08,0.66]
[1753664682829,40.35858118,189.09,189.08,0.66]
[1753664683341,5.28876665,189.08,189.07,0.06]
[1753664683730,5.28876665,189.08,189.07,0.72]
[1753664684227,45.64707211,189.09,189.07,0.72]
[1753664684659,45.64707211,189.09,189.08,0.66]
[1753664687135,146.3,189.08,189.07,0.06]
[1753664687850,146.3,189.08,189.07,7.45319292]
[1753664688051,146.3,189.08,189.07,8.11319292]
[1753664688248,145.58,189.08,189.07,8.11319292]
[1753664690635,145.58,189.08,189.07,13.4022393]
[1753664690851,145.58,189.08,189.07,8.11319292]
[1753664691456,42.94789257,189.12,189.07,8.11319292]
[1753664691641,42.94789257,189.12,189.08,0.66]
[1753664691842,42.94789257,189.12,189.1,7.39319292]
[1753664692039,37.66,189.12,189.11,0.66]
[1753664692276,37.66,189.12,189.11,8.05319292]
[1753664693036,37.66,189.13,189.11,0.66]
[1753664693338,37.66,189.13,189.12,0.66]
[1753664693949,37.66,189.13,189.12,8.05319292]
[1753664694461,37.66,189.13,189.12,0.66]
[1753664694668,150.8668903,189.15,189.12,8.05319292]
[1753664694854,37.66,189.14,189.12,7.39319292]
[1753664695041,37.66,189.14,189.13,0.68]
[1753664696260,37.66,189.14,189.13,8.07319292]
[1753664696454,145.58,189.15,189.13,8.07319292]
[1753664696662,145.58,189.15,189.14,7.39319292]
[1753664696841,150.86680941,189.15,189.14,0.68]
[1753664697452,145.58,189.15,189.14,0.68]
[1753664701449,5.31645874,189.17,189.14,13.36028184]
[1753664701450,0.03,189.17,189.14,13.36028184]
[1753664701666,0.03,189.17,189.16,7.39319292]
[1753664702043,0.03,189.17,189.16,8.07319292]
[1753664702238,0.03,189.22,189.16,8.07319292]
[1753664702442,0.03,189.22,189.14,18.50481124]
[1753664702443,0.03,189.22,189.21,7.39319292]
[1753664702866,0.03,189.22,189.21,5.20888969]
[1753664704753,0.03,189.22,189.21,10.49402261]
[1753664706266,0.03,189.26,189.21,23.99117805]
[1753664706476,0.03,189.26,189.25,12.45178969]
[1753664706651,0.03,189.3,189.29,4.52888969]
[1753664707062,0.03,189.3,189.29,5.20888969]
[1753664707972,0.03,189.3,189.29,10.49178894]
[1753664708346,0.03,189.3,189.29,11.02007886]
[1753664709170,0.03,189.3,189.29,11.304402]
[1753664711383,0.03,189.3,189.29,5.20888969]
[1753664711553,0.03,189.3,189.29,10.49178894]
[1753664713559,0.03,189.3,189.29,5.20888969]
[1753664713763,0.03,189.3,189.25,33.9229]
[1753664714065,0.03,189.3,189.29,4.52888969]
[1753664714775,0.03,189.3,189.29,10.49178894]
[1753664715156,0.03,189.3,189.29,5.20888969]
[1753664715353,0.03,189.3,189.25,1.6436]
[1753664715558,0.68,189.3,189.27,4.52888969]
[1753664715868,0.03,189.3,189.27,4.52888969]
[1753664716069,0.65,189.29,189.27,4.52888969]
[1753664716475,5.31285157,189.3,189.27,4.52888969]
[1753664716858,5.96285157,189.3,189.27,4.52888969]
[1753664717483,5.31285157,189.3,189.23,5.28452081]
[1753664717674,0.65,189.29,189.22,0.68]
[1753664717979,4.52888969,189.28,189.22,5.20888969]
[1753664718180,0.65,189.27,189.23,4.52888969]
[1753664718370,0.65,189.27,189.24,4.52888969]
[1753664718567,5.93348909,189.27,189.24,4.52888969]
[1753664718960,5.28289925,189.29,189.25,5.20888969]
[1753664719470,5.93289925,189.29,189.25,4.52888969]
[1753664719672,146.23,189.28,189.23,4.52888969]
[1753664719860,145.58,189.28,189.23,4.52888969]
[1753664720062,5.17888969,189.27,189.21,4.52888969]
[1753664720389,5.17888969,189.27,189.17,0.68]
[1753664720390,150.75888969,189.26,189.2,4.52888969]
[1753664720685,5.93401585,189.25,189.2,4.52888969]
[1753664720868,0.65,189.24,189.17,0.68]
[1753664721056,26.0,189.2,189.15,4.52888969]
[1753664721258,26.0,189.18,189.14,4.52888969]
[1753664721457,0.65,189.17,189.11,5.96786155]
[1753664721672,0.65,189.16,189.13,4.52888969]
[1753664722282,0.65,189.15,189.12,4.58888969]
[1753664722563,34.77778944,189.18,189.12,0.06]
[1753664722564,0.65,189.14,189.12,0.06]
[1753664723168,0.65,189.16,189.12,0.06]
[1753664723571,0.65,189.16,189.12,7.44870877]
[1753664723772,26.0,189.16,189.13,7.38870877]
[1753664724387,26.0,189.18,189.15,7.38870877]
[1753664724590,26.0,189.18,189.16,7.38870877]
[1753664724791,26.0,189.18,189.15,0.68]
[1753664724792,26.65,189.18,189.15,7.38870877]
[1753664724993,26.0,189.18,189.12,0.06]
[1753664725169,0.66,189.17,189.12,0.06]
[1753664725375,7.38870877,189.16,189.12,0.06]
[1753664725680,0.66,189.15,189.12,0.06]
[1753664726293,45.00870877,189.16,189.12,0.06]
[1753664726294,37.62,189.16,189.12,0.06]
[1753664726472,37.62,189.16,189.12,7.44870877]
[1753664726669,37.62,189.16,189.12,0.75]
[1753664726863,37.62,189.16,189.13,8.07870877]
[1753664727063,145.58,189.17,189.13,8.07870877]
[1753664727468,37.62,189.2,189.16,7.38870877]
[1753664727691,145.58,189.23,189.19,7.38870877]
[1753664728073,0.66,189.22,189.19,7.38870877]
[1753664728392,145.58,189.23,189.2,8.07870877]
[1753664728590,145.58,189.23,189.2,7.38870877]
[1753664728787,146.24,189.23,189.2,7.38870877]
[1753664729286,146.24,189.23,189.19,7.38870877]
[1753664729786,146.24,189.23,189.19,12.67439804]
[1753664730087,146.24,189.23,189.19,7.38870877]
[1753664730401,0.66,189.22,189.19,7.38870877]
[1753664731072,145.58,189.23,189.18,5.28589772]
[1753664731270,145.58,189.23,189.2,7.38870877]
[1753664731487,146.24,189.23,189.2,7.38870877]
[1753664732165,146.24,189.23,189.22,7.38870877]
[1753664732166,145.58,189.23,189.22,7.38870877]
[1753664732373,0.66,189.27,189.22,8.07870877]
[1753664732579,37.62,189.28,189.24,7.38870877]
[1753664732781,26.0,189.26,189.25,7.38870877]
[1753664733097,37.62,189.28,189.25,7.38870877]
[1753664733474,146.24,189.29,189.25,7.38870877]
[1753664733870,151.52297625,189.29,189.25,7.38870877]
[1753664734790,145.58,189.29,189.26,7.38870877]
[1753664735178,145.58,189.29,189.27,7.38870877]
[1753664736086,26.03,189.3,189.28,7.38870877]
[1753664736286,0.03,189.3,189.24,17.06900711]
[1753664736487,0.03,189.3,189.23,18.49601013]
[1753664736488,0.03,189.3,189.28,7.38870877]
[1753664736676,26.03,189.3,189.28,7.38870877]
[1753664737078,26.03,189.3,189.29,7.38870877]
[1753664737787,26.03,189.3,189.28,7.38870877]
[1753664738176,0.03,189.3,189.29,7.38870877]
[1753664738576,0.03,189.3,189.28,7.38870877]
[1753664740091,0.03,189.3,189.28,8.07870877]
[1753664740301,0.03,189.3,189.28,7.38870877]
[1753664741275,0.03,189.3,189.25,7.38870877]
[1753664741497,0.66,189.29,189.24,7.38870877]
[1753664742000,0.66,189.28,189.24,7.38870877]
[1753664742499,5.94328534,189.28,189.24,7.38870877]
[1753664743274,0.66,189.27,189.23,7.38870877]
[1753664743489,0.66,189.26,189.23,7.38870877]
[1753664743682,0.66,189.26,189.22,7.38870877]
[1753664743898,152.96870877,189.27,189.2,0.69]
[1753664744078,8.04870877,189.25,189.19,44.98870877]
[1753664744410,5.28429507,189.24,189.19,7.38870877]
[1753664744773,5.28429507,189.24,189.19,5.22007343]
[1753664745185,150.86429507,189.24,189.2,4.53007343]
[1753664745413,63.6,189.27,189.23,4.53007343]
[1753664745609,63.6,189.27,189.25,4.53007343]
[1753664746004,63.6,189.27,189.25,5.22007343]
[1753664746381,145.61,189.3,189.25,5.22007343]
[1753664746382,145.61,189.3,189.26,5.22007343]
[1753664746708,145.61,189.3,189.28,4.53007343]
[1753664747902,145.61,189.3,189.29,4.53007343]
[1753664748879,145.61,189.3,189.29,7.37459994]
[1753664749086,145.61,189.3,189.28,7.37459994]
[1753664749503,151.55264969,189.3,189.27,7.37459994]
[1753664749899,0.66,189.29,189.26,7.37459994]
[1753664750687,145.61,189.3,189.27,7.37459994]
[1753664751093,145.61,189.3,189.29,7.37459994]
[1753664751503,0.03,189.3,189.29,8.06459994]
[1753664751712,0.03,189.3,189.29,8.34892308]
[1753664752017,0.03,189.3,189.29,13.63182233]
[1753664752510,0.03,189.3,189.29,6.25722239]
[1753664752717,0.03,189.3,189.29,13.63182233]
[1753664753218,0.03,189.3,189.29,30.4165063]
[1753664753909,0.03,189.3,189.29,37.79110624]
[1753664754090,0.03,189.3,189.29,38.31939616]
[1753664754494,0.03,189.33,189.32,7.65892308]
[1753664754689,0.03,189.33,189.32,24.97181326]
[1753664754890,0.03,189.36,189.33,17.06900711]
[1753664755094,0.03,189.36,189.35,24.15928391]
[1753664755519,0.03,189.36,189.35,24.83928391]
[1753664755811,0.03,189.36,189.35,13.62014832]
[1753664756804,0.03,189.36,189.35,7.37459994]
[1753664757318,0.03,189.36,189.34,5.28145123]
[1753664757319,0.03,189.36,189.34,7.37459994]
[1753664758916,0.03,189.36,189.35,7.37459994]
[1753664759291,0.03,189.36,189.35,0.68]
[1753664760506,0.03,189.36,189.35,7.37459994]
[1753664761105,0.03,189.36,189.34,7.37459994]
[1753664761399,0.03,189.36,189.35,7.37459994]
[1753664761617,0.03,189.36,189.34,7.37459994]
[1753664763424,0.03,189.36,189.33,44.95459994]
[1753664763597,0.69,189.35,189.31,7.37459994]
[1753664763803,0.69,189.34,189.32,7.37459994]
[1753664763998,0.72,189.36,189.32,7.37459994]
[1753664764321,0.72,189.36,189.3,37.58]
[1753664764322,0.69,189.35,189.31,7.37459994]
[1753664764618,5.31120514,189.36,189.31,8.05459994]
[1753664764801,0.69,189.35,189.3,37.58]
[1753664765001,0.69,189.34,189.3,44.95459994]
[1753664766434,5.9715891,189.34,189.3,44.95459994]
[1753664766607,0.69,189.33,189.28,44.95459994]
[1753664766796,8.06459994,189.32,189.25,0.68]
[1753664767001,7.37459994,189.3,189.24,7.37459994]
[1753664767231,34.06459994,189.31,189.25,7.37459994]
[1753664767441,34.06459994,189.31,189.3,0.06]
[1753664768722,39.34694107,189.31,189.3,0.06]
[1753664768911,31.97234113,189.31,189.3,0.06]
[1753664769829,39.34694107,189.31,189.3,0.06]
[1753664770345,26.0,189.31,189.3,0.06]
[1753664770645,26.0,189.32,189.3,0.06]
[1753664770936,31.28212014,189.32,189.3,0.06]
[1753664771247,190.53459994,189.35,189.3,0.74]
[1753664771406,0.03,189.36,189.32,7.37459994]
[1753664771606,5.31099063,189.36,189.33,0.68]
[1753664771806,5.31099063,189.36,189.33,8.05459994]
[1753664772015,5.31099063,189.36,189.33,7.37459994]
[1753664772016,0.03,189.36,189.33,7.37459994]
[1753664772218,0.03,189.36,189.34,0.68]
[1753664772639,26.03,189.36,189.34,0.68]
[1753664773026,26.03,189.36,189.34,8.05459994]
[1753664773027,0.03,189.36,189.34,8.05459994]
[1753664773541,0.03,189.36,189.35,8.05459994]
[1753664774311,0.03,189.36,189.35,8.33892308]
[1753664774934,0.03,189.36,189.35,13.62014832]
[1753664776522,0.03,189.36,189.35,51.18014832]
[1753664781117,0.03,189.36,189.35,67.96483229]
[1753664781325,0.03,189.36,189.35,13.62014832]
[1753664781546,0.03,189.36,189.35,50.50014832]
[1753664781850,0.03,189.36,189.35,44.93459994]
[1753664782228,0.03,189.36,189.35,37.56]
[1753664783046,0.03,189.36,189.35,7.37459994]
[1753664783233,0.03,189.36,189.35,13.33582518]
[1753664784345,0.03,189.36,189.35,30.93295481]
[1753664784648,0.03,189.4,189.39,42.78468397]
[1753664784827,0.03,189.4,189.39,93.81172785]
[1753664785025,0.03,189.4,189.39,94.50172785]
[1753664786052,0.03,189.4,189.39,34.87693406]
[1753664786240,0.03,189.4,189.39,76.4990329]
[1753664786437,0.03,189.4,189.39,45.21892308]
[1753664786631,0.03,189.4,189.39,7.37459994]
[1753664786942,0.03,189.4,189.39,44.93459994]
[1753664787550,0.03,189.4,189.39,51.1890329]
[1753664787846,0.03,189.4,189.39,67.97371687]
[1753664791331,0.03,189.4,189.39,75.34831681]
[1753664792042,0.03,189.4,189.39,67.97371687]
[1753664793335,0.03,189.4,189.39,56.41371687]
[1753664793535,0.03,189.4,189.39,93.95371687]
[1753664796430,0.03,189.44,189.4,17.06900711]
[1753664796767,0.1,189.49,189.45,0.28432314]
[1753664796969,0.1,189.49,189.48,12.93652493]
[1753664797258,0.1,189.49,189.48,68.47896908]
[1753664802730,0.1,189.49,189.48,67.78896908]
[1753664802934,0.1,189.49,189.48,67.50464594]
[1753664803183,0.1,189.49,189.48,67.62680751]
[1753664803758,0.1,189.49,189.48,67.76896908]
[1753664805258,0.1,189.49,189.48,45.17892308]
[1753664806055,0.1,189.49,189.48,50.45652493]
[1753664806257,0.1,189.49,189.45,16.78468397]
[1753664806258,0.82,189.49,189.45,16.78468397]
[1753664806447,6.09737774,189.49,189.45,7.37459994]
[1753664806647,0.72,189.48,189.46,37.52]
[1753664806849,0.72,189.48,189.45,7.37459994]
[1753664807053,0.72,189.48,189.46,37.52]
[1753664807640,0.72,189.47,189.46,37.52]
[1753664809062,5.9978804,189.47,189.46,37.52]
[1753664809262,13.37248034,189.47,189.39,7.37459994]
[1753664809448,7.37459994,189.45,189.4,37.52]
[1753664809850,8.09459994,189.44,189.4,37.52]
[1753664810049,0.72,189.43,189.4,37.52]
[1753664810716,7.37459994,189.41,189.38,0.06]
[1753664810859,0.72,189.4,189.38,37.58]
[1753664811064,12.65470976,189.39,189.38,0.06]
[1753664811372,5.28010982,189.39,189.38,0.06]
[1753664811666,6.00010982,189.39,189.38,0.06]
[1753664815357,0.72,189.39,189.38,0.06]
[1753664818751,13.37470976,189.39,189.38,0.06]
[1753664820965,5.27984877,189.4,189.38,0.06]
[1753664821770,12.65444871,189.4,189.38,0.06]
[1753664822066,13.35444871,189.4,189.38,0.06]
[1753664823160,40.24029595,189.41,189.38,0.06]
[1753664823375,145.58,189.4,189.38,0.06]
[1753664824163,8.07459994,189.39,189.38,0.06]
[1753664824363,152.95459994,189.4,189.38,0.06]
[1753664824860,158.23450089,189.4,189.38,0.06]
[1753664825269,158.93450089,189.4,189.38,0.06]
[1753664825454,158.23450089,189.4,189.38,0.06]
[1753664825653,8.07459994,189.39,189.38,0.06]
[1753664826870,13.35470976,189.39,189.38,0.06]
[1753664829270,158.23451394,189.4,189.38,0.06]
[1753664829782,145.58,189.4,189.38,0.71]
[1753664830088,24.64158397,189.46,189.39,0.65]
[1753664830089,7.37459994,189.43,189.39,0.65]
[1753664830274,7.37459994,189.4,189.38,0.06]
[1753664830461,8.07459994,189.39,189.38,0.06]
[1753664831173,13.35470976,189.39,189.38,0.06]
[1753664832159,12.65470976,189.39,189.38,0.06]
[1753664832972,30.13939373,189.39,189.38,0.06]
[1753664833266,13.35470976,189.39,189.38,0.06]
[1753664834897,10.50478931,189.39,189.38,0.06]
[1753664835087,5.28010982,189.39,189.38,0.06]
[1753664835677,10.50478931,189.39,189.38,0.06]
[1753664837284,48.04478931,189.39,189.38,0.06]
[1753664838512,64.82947328,189.39,189.38,0.06]
[1753664838672,66.37277328,189.39,189.38,0.06]
[1753664838872,69.22276337,189.39,189.38,0.06]
[1753664839199,26.0,189.35,189.34,0.06]
[1753664839495,38.65589482,189.35,189.34,0.06]
[1753664839697,76.89589482,189.35,189.34,0.06]
[1753664841798,76.19589482,189.35,189.34,0.06]
[1753664842169,31.28122524,189.35,189.34,0.06]
[1753664842393,26.0,189.35,189.34,0.71]
[1753664842803,70.91466958,189.38,189.34,0.71]
[1753664843091,70.91466958,189.38,189.34,0.06]
[1753664843092,7.37466958,189.35,189.34,0.06]
[1753664843471,12.65589482,189.35,189.34,0.06]
[1753664843896,5.28122524,189.35,189.34,0.71]
[1753664844081,217.21466958,189.38,189.34,0.71]
[1753664844486,172.3,189.38,189.34,8.08466958]
[1753664844874,172.3,189.38,189.35,0.72]
[1753664845074,26.0,189.4,189.37,7.37466958]
[1753664845287,153.6427,189.46,189.39,7.37466958]
[1753664845288,7.37466958,189.45,189.39,7.37466958]
[1753664845480,5.27843758,189.45,189.4,7.37466958]
[1753664845791,5.27843758,189.45,189.41,8.09466958]
[1753664845990,26.0,189.43,189.42,0.72]
[1753664846195,5.27843758,189.45,189.42,0.72]
[1753664846789,7.37466958,189.43,189.38,0.72]
[1753664846986,7.37466958,189.4,189.36,0.72]
[1753664847192,7.37466958,189.4,189.34,45.69466958]
[1753664847390,7.37466958,189.4,189.34,44.97466958]
[1753664847586,44.91466958,189.42,189.36,7.37466958]
[1753664847788,26.0,189.41,189.39,7.37466958]
[1753664847997,7.37466958,189.4,189.34,37.6]
[1753664848226,7.37466958,189.39,189.34,38.32]
[1753664848411,7.37466958,189.4,189.35,0.72]
[1753664848578,31.27965472,189.41,189.35,0.72]
[1753664848778,38.6543243,189.41,189.35,8.09466958]
[1753664849198,38.6543243,189.41,189.35,0.72]
[1753664849402,7.37466958,189.4,189.35,0.72]
[1753664849702,7.37466958,189.39,189.34,37.6]
[1753664849893,8.09466958,189.39,189.34,37.6]
[1753664850092,7.37466958,189.37,189.34,0.06]
[1753664850611,12.6554651,189.37,189.34,0.06]
[1753664851405,12.6550806,189.38,189.35,0.72]
[1753664851901,12.6550806,189.38,189.34,0.06]
[1753664852201,12.6550806,189.38,189.34,0.78]
[1753664852907,7.37466958,189.35,189.34,0.06]
[1753664853404,8.09466958,189.35,189.34,0.06]
[1753664854000,50.87935355,189.35,189.34,0.06]
[1753664854705,56.16057879,189.35,189.34,0.06]
[1753664855199,31.28122524,189.35,189.34,0.06]
[1753664855400,93.70057879,189.35,189.34,0.06]
[1753664856180,67.70057879,189.35,189.34,0.06]
[1753664856385,75.16191396,189.35,189.34,0.06]
[1753664857104,26.0,189.31,189.3,0.06]
[1753664857305,7.37466958,189.31,189.3,0.06]
[1753664857605,8.09466958,189.31,189.3,0.06]
[1753664858083,0.72,189.31,189.3,0.06]
[1753664858286,71.63466958,189.31,189.3,0.06]
[1753664858585,88.41935355,189.31,189.3,0.06]
[1753664858791,93.70169468,189.31,189.3,0.06]
[1753664859177,101.07636426,189.31,189.3,1e-08]
[1753664859383,102.66546426,189.31,189.3,1e-08]
[1753664859591,95.29079468,189.31,189.3,1e-08]
[1753664860003,57.03079468,189.31,189.3,1e-08]
[1753664860184,93.02169468,189.31,189.3,1e-08]
[1753664860694,93.74169468,189.31,189.3,1e-08]
[1753664861504,76.23701071,189.31,189.3,1e-08]
[1753664862306,93.02169468,189.31,189.3,1e-08]
[1753664862601,93.74169468,189.31,189.3,1e-08]
[1753664866411,85.6470251,189.31,189.3,1e-08]
[1753664866708,93.02169468,189.31,189.3,1e-08]
[1753664866912,90.17467799,189.31,189.3,1e-08]
[1753664868007,90.17467799,189.31,189.3,0.72000001]
[1753664868008,73.38999402,189.31,189.3,0.72000001]
[1753664868213,35.80999402,189.31,189.3,0.72000001]
[1753664868907,35.80999402,189.31,189.3,1e-08]
[1753664870908,52.59467799,189.31,189.3,1e-08]
[1753664871715,42.86206823,189.32,189.3,0.72000001]
[1753664872010,42.08765289,189.39,189.31,4.52765289]
[1753664872215,37.56,189.39,189.34,4.52765289]
[1753664872418,5.27955229,189.41,189.36,4.52765289]
[1753664872601,42.8593119,189.42,189.37,0.72]
[1753664872794,26.0,189.39,189.36,7.36827615]
[1753664872996,26.0,189.39,189.38,0.72]
[1753664873194,31.28010982,189.39,189.38,0.72]
[1753664873623,5.28010982,189.39,189.38,0.72]
[1753664874004,5.27991039,189.4,189.38,0.72]
[1753664874507,5.27991039,189.4,189.39,0.72]
[1753664874716,12.64818654,189.4,189.36,0.72]
[1753664874919,0.03,189.38,189.37,0.67]
[1753664875795,7.39827615,189.38,189.34,0.67]
[1753664876108,7.36827615,189.37,189.34,0.67]
[1753664876309,7.36827615,189.37,189.32,7.36827615]
[1753664876510,7.39827615,189.38,189.35,0.67]
[1753664876715,7.39827615,189.38,189.36,0.67]
[1753664876894,12.67889976,189.38,189.36,0.67]
[1753664877316,0.03,189.38,189.37,0.67]
[1753664878322,0.03,189.38,189.37,8.03827615]
[1753664878527,0.03,189.38,189.37,8.32259929]
[1753664879048,0.03,189.38,189.37,13.60326676]
[1753664880241,0.03,189.38,189.37,15.20656676]
[1753664881320,0.03,189.38,189.37,9.64157615]
[1753664881518,0.03,189.38,189.37,0.67]
[1753664881924,0.03,189.38,189.37,8.03827615]
[1753664882325,0.03,189.38,189.37,0.67]
[1753664882540,0.03,189.38,189.37,8.03827615]
[1753664882713,0.03,189.38,189.37,13.31894362]
[1753664883617,0.03,189.38,189.37,8.03827615]
[1753664884221,0.03,189.38,189.37,13.31894362]
[1753664884417,0.03,189.38,189.37,13.60326676]
[1753664885007,0.03,189.38,189.37,0.67]
[1753664885312,0.03,189.44,189.39,0.28432314]
[1753664885512,0.03,189.46,189.43,24.43728326]
[1753664885709,0.03,189.46,189.45,12.64671373]
[1753664886030,0.03,189.46,189.45,12.93103687]
[1753664886208,0.03,189.48,189.46,0.28432314]
[1753664886510,0.03,189.48,189.47,7.36827615]
[1753664887218,0.03,189.48,189.47,8.03827615]
[1753664887850,0.03,189.48,189.47,7.36827615]
[1753664888131,0.03,189.48,189.46,7.36827615]
[1753664889248,0.75,189.48,189.43,7.36827615]
[1753664889454,0.75,189.48,189.42,37.62]
[1753664889455,8.08827615,189.47,189.42,37.62]
[1753664890019,5.27815897,189.46,189.42,45.65827615]
[1753664890226,5.27815897,189.46,189.42,38.29]
[1753664890624,5.27815897,189.46,189.42,37.62]
[1753664890846,7.36827615,189.44,189.42,37.62]
[1753664891045,7.36827615,189.44,189.38,45.63827615]
[1753664891212,8.08827615,189.44,189.38,45.63827615]
[1753664891411,7.36827615,189.45,189.39,7.36827615]
[1753664891636,7.36827615,189.45,189.39,8.03827615]
[1753664892137,5.27871621,189.44,189.39,8.03827615]
[1753664892508,5.27871621,189.44,189.4,0.67]
[1753664892712,8.08827615,189.43,189.38,37.6]
[1753664892932,8.08827615,189.42,189.38,37.6]
[1753664893132,7.36827615,189.42,189.38,37.6]
[1753664893329,0.72,189.41,189.38,37.6]
[1753664893720,7.36827615,189.4,189.35,0.67]
[1753664893915,8.08827615,189.4,189.34,7.36827615]
[1753664894239,13.36838514,189.4,189.34,7.36827615]
[1753664894426,13.36838514,189.4,189.33,43.55171547]
[1753664894644,0.72,189.39,189.34,7.36827615]
[1753664894844,8.08827615,189.39,189.33,37.6]
[1753664895134,7.36827615,189.37,189.33,37.6]
[1753664895526,8.08827615,189.37,189.33,37.6]
[1753664895933,7.36827615,189.38,189.33,37.6]
[1753664896126,18.4796866,189.4,189.33,37.6]
[1753664896127,33.36827615,189.4,189.34,8.03827615]
[1753664896325,31.28010096,189.4,189.35,8.03827615]
[1753664896631,31.28010096,189.4,189.36,0.67]
[1753664897038,31.28010096,189.4,189.34,7.36827615]
[1753664897246,32.00010096,189.4,189.35,0.67]
[1753664897430,153.66827615,189.43,189.37,7.36827615]
[1753664897630,0.03,189.45,189.41,7.36827615]
[1753664897832,0.03,189.45,189.42,7.36827615]
[1753664898021,0.03,189.45,189.43,7.36827615]
[1753664898239,0.03,189.45,189.44,7.36827615]
[1753664898844,0.03,189.45,189.43,7.36827615]
[1753664899021,0.03,189.45,189.42,8.03827615]
[1753664899226,0.03,189.45,189.42,7.36827615]
[1753664899924,0.03,189.45,189.41,7.36827615]
[1753664900244,0.03,189.45,189.43,7.36827615]
[1753664900639,0.03,189.45,189.4,5.27983104]
[1753664900947,0.03,189.45,189.42,7.36827615]
[1753664901117,0.03,189.45,189.4,7.36827615]
[1753664901323,0.72,189.44,189.4,7.36827615]
[1753664901534,0.03,189.45,189.4,7.36827615]
[1753664901740,5.30843758,189.45,189.4,7.36827615]
[1753664902022,0.03,189.45,189.41,8.03827615]
[1753664902226,0.03,189.45,189.42,0.67]
[1753664902439,0.03,189.45,189.43,7.36827615]
[1753664902745,0.03,189.45,189.43,8.03827615]
[1753664902948,0.03,189.45,189.41,7.36827615]
[1753664903246,0.75,189.45,189.4,45.61827615]
[1753664903433,0.03,189.45,189.4,44.94827615]
[1753664903628,0.03,189.45,189.41,0.67]
[1753664904150,0.03,189.45,189.42,0.67]
[1753664905037,0.03,189.45,189.41,7.36827615]
[1753664905245,0.03,189.45,189.43,0.7]
[1753664905552,0.03,189.45,189.42,8.06827615]
[1753664905734,0.03,189.45,189.44,7.36827615]
[1753664906352,0.03,189.45,189.44,8.06827615]
[1753664906741,0.03,189.45,189.44,8.35259929]
[1753664907140,0.03,189.45,189.44,62.71728326]
[1753664907655,0.03,189.45,189.44,67.99599947]
[1753664908463,0.03,189.45,189.44,51.2113155]
[1753664910334,0.03,189.45,189.41,5.27951876]
[1753664910655,0.03,189.45,189.42,44.94827615]
[1753664910865,0.03,189.45,189.42,45.64827615]
[1753664911155,0.03,189.45,189.44,7.36827615]
[1753664911355,0.03,189.45,189.44,7.65259929]
[1753664911538,0.03,189.45,189.44,8.35259929]